[Event "Early-Titled-Tuesday-Blitz-February-13-2024"]
[Site "Chess.com"]
[Date "2024.02.13"]
[Round "4"]
[White "DvaHrasta"]
[Black "giovannibrandao7"]
[Result "0-1"]
[WhiteElo "2486"]
[BlackElo "2253"]
[TimeControl "180+1"]
[EndTime "8:42:07 PST"]
[Termination "giovannibrandao7 won on time"]

1. c4 {[%clk 0:03:00.9]} 1... Nf6 {[%clk 0:02:59.8]} 2. g3 {[%clk 0:03:01.2]}
2... g6 {[%clk 0:02:59.7]} 3. Bg2 {[%clk 0:03:01.4]} 3... Bg7 {[%clk 0:03:00.3]}
4. Nc3 {[%clk 0:03:01.7]} 4... O-O {[%clk 0:03:00.4]} 5. Nf3 {[%clk 0:03:01.9]}
5... c5 {[%clk 0:02:54.8]} 6. O-O {[%clk 0:03:01.6]} 6... Nc6 {[%clk 0:02:55.3]}
7. d4 {[%clk 0:03:01.7]} 7... cxd4 {[%clk 0:02:56.2]} 8. Nxd4 {[%clk 0:03:02]}
8... Ng4 {[%clk 0:02:56.4]} 9. e3 {[%clk 0:03:01.3]} 9... d6 {[%clk 0:02:55.9]}
10. Nxc6 {[%clk 0:02:58.1]} 10... bxc6 {[%clk 0:02:56.8]} 11. Bxc6 {[%clk
0:02:57.9]} 11... Rb8 {[%clk 0:02:56.9]} 12. Bg2 {[%clk 0:02:56.1]} 12... Qa5
{[%clk 0:02:37]} 13. Nd5 {[%clk 0:02:40.3]} 13... Qd8 {[%clk 0:02:14.3]} 14. Rb1
{[%clk 0:02:31.5]} 14... Ne5 {[%clk 0:02:12.2]} 15. Qa4 {[%clk 0:02:22.8]} 15...
Bd7 {[%clk 0:01:53.6]} 16. Qxa7 {[%clk 0:02:18.6]} 16... Nxc4 {[%clk 0:01:53.4]}
17. b3 {[%clk 0:02:13.2]} 17... e6 {[%clk 0:01:43.9]} 18. Nf4 {[%clk 0:01:58.6]}
18... d5 {[%clk 0:01:35.2]} 19. bxc4 {[%clk 0:01:51.5]} 19... Rxb1 {[%clk
0:01:33.9]} 20. cxd5 {[%clk 0:01:50.8]} 20... Bb5 {[%clk 0:01:24.8]} 21. Rd1
{[%clk 0:01:27]} 21... Qc8 {[%clk 0:01:22.1]} 22. Qa3 {[%clk 0:00:08.9]} 22...
Bb2 {[%clk 0:01:11.3]} 23. Qxb2 {[%clk 0:00:06]} 23... Rxb2 {[%clk 0:01:11]} 24.
Bxb2 {[%clk 0:00:06.3]} 24... Qc2 {[%clk 0:01:11.5]} 25. Re1 {[%clk 0:00:04.5]}
25... Qxb2 {[%clk 0:01:09]} 26. d6 {[%clk 0:00:03.5]} 26... Qd2 {[%clk
0:01:06.1]} 27. Rb1 {[%clk 0:00:02.1]} 27... Bc4 {[%clk 0:00:42.2]} 28. h4
{[%clk 0:00:01.2]} 28... Qxd6 {[%clk 0:00:41.4]} 0-1

[Event "Early-Titled-Tuesday-Blitz-February-13-2024"]
[Site "Chess.com"]
[Date "2024.02.13"]
[Round "4"]
[White "Titus369"]
[Black "Brahianzevich"]
[Result "0-1"]
[WhiteElo "2634"]
[BlackElo "2439"]
[TimeControl "180+1"]
[EndTime "8:42:09 PST"]
[Termination "Brahianzevich won by checkmate"]

1. e4 {[%clk 0:03:00.9]} 1... c5 {[%clk 0:02:59.8]} 2. Nf3 {[%clk 0:03:00.8]}
2... d6 {[%clk 0:03:00.3]} 3. d4 {[%clk 0:03:00.2]} 3... cxd4 {[%clk 0:03:01.2]}
4. Nxd4 {[%clk 0:03:00.7]} 4... Nf6 {[%clk 0:03:01.8]} 5. Nc3 {[%clk 0:03:00.5]}
5... a6 {[%clk 0:03:02.3]} 6. h3 {[%clk 0:02:54.3]} 6... e6 {[%clk 0:03:00]} 7.
a4 {[%clk 0:02:51.3]} 7... Nbd7 {[%clk 0:02:56.2]} 8. Bc4 {[%clk 0:02:50]} 8...
Qc7 {[%clk 0:02:48.4]} 9. Ba2 {[%clk 0:02:42.6]} 9... Nc5 {[%clk 0:02:47.9]} 10.
Qe2 {[%clk 0:02:25]} 10... Be7 {[%clk 0:02:46.8]} 11. O-O {[%clk 0:01:52.8]}
11... O-O {[%clk 0:02:44.1]} 12. Kh1 {[%clk 0:01:41.8]} 12... b6 {[%clk
0:02:26.4]} 13. f4 {[%clk 0:01:41.4]} 13... Bb7 {[%clk 0:02:25.4]} 14. e5 {[%clk
0:01:37.9]} 14... dxe5 {[%clk 0:02:21.8]} 15. fxe5 {[%clk 0:01:38.8]} 15... Nfd7
{[%clk 0:02:22.4]} 16. b4 {[%clk 0:01:01.3]} 16... Nb3 {[%clk 0:02:18.7]} 17.
Bxb3 {[%clk 0:00:46.9]} 17... Qxc3 {[%clk 0:02:18.5]} 18. Be3 {[%clk 0:00:33.3]}
18... Nxe5 {[%clk 0:02:10]} 19. Nxe6 {[%clk 0:00:22.2]} 19... fxe6 {[%clk
0:02:04.3]} 20. Bxe6+ {[%clk 0:00:23.1]} 20... Kh8 {[%clk 0:02:04.3]} 21. Rxf8+
{[%clk 0:00:15.3]} 21... Rxf8 {[%clk 0:02:03.6]} 22. Bxb6 {[%clk 0:00:12.3]}
22... Qc6 {[%clk 0:01:58.3]} 23. Bd4 {[%clk 0:00:03.8]} 23... Qxe6 {[%clk
0:01:55]} 24. Qxe5 {[%clk 0:00:02.6]} 24... Qxh3+ {[%clk 0:01:54.6]} 25. Qh2
{[%clk 0:00:03.2]} 25... Bxg2+ {[%clk 0:01:39.2]} 26. Kg1 {[%clk 0:00:03]} 26...
Qxh2+ {[%clk 0:01:22.8]} 27. Kxh2 {[%clk 0:00:03.9]} 27... Bd5 {[%clk 0:01:23]}
28. c3 {[%clk 0:00:01.7]} 28... Bd6+ {[%clk 0:01:22.8]} 29. Kh3 {[%clk
0:00:01.4]} 29... Rf3+ {[%clk 0:01:20.8]} 30. Kg4 {[%clk 0:00:01.7]} 30... Kg8
{[%clk 0:01:16.9]} 31. Re1 {[%clk 0:00:01.9]} 31... Kf7 {[%clk 0:01:16.4]} 32.
c4 {[%clk 0:00:02.1]} 32... Rg3+ {[%clk 0:01:13.8]} 33. Kh4 {[%clk 0:00:02.1]}
33... Bxc4 {[%clk 0:01:12.4]} 34. Bc5 {[%clk 0:00:02.2]} 34... g5+ {[%clk
0:01:03.3]} 35. Kh5 {[%clk 0:00:02.4]} 35... Bxc5 {[%clk 0:00:59.1]} 36. bxc5
{[%clk 0:00:03.3]} 36... Kg7 {[%clk 0:00:59.1]} 37. Re5 {[%clk 0:00:01.1]} 37...
Bf7# {[%clk 0:00:59]} 0-1

[Event "Early-Titled-Tuesday-Blitz-February-13-2024"]
[Site "Chess.com"]
[Date "2024.02.13"]
[Round "4"]
[White "Iuckyducky"]
[Black "masterofpuppets2"]
[Result "0-1"]
[WhiteElo "2265"]
[BlackElo "2440"]
[TimeControl "180+1"]
[EndTime "8:42:09 PST"]
[Termination "masterofpuppets2 won by resignation"]

1. e4 {[%clk 0:02:57.4]} 1... c5 {[%clk 0:02:59.9]} 2. Nf3 {[%clk 0:02:57.4]}
2... Nc6 {[%clk 0:03:00.5]} 3. Bb5 {[%clk 0:02:57.3]} 3... e6 {[%clk 0:03:00.6]}
4. Bxc6 {[%clk 0:02:56.8]} 4... bxc6 {[%clk 0:03:01.5]} 5. O-O {[%clk
0:02:57.3]} 5... Ne7 {[%clk 0:03:01.3]} 6. Qe2 {[%clk 0:02:57]} 6... f6 {[%clk
0:03:00.2]} 7. d3 {[%clk 0:02:54.9]} 7... Ng6 {[%clk 0:02:57.6]} 8. e5 {[%clk
0:02:50.7]} 8... Be7 {[%clk 0:02:48.6]} 9. Na3 {[%clk 0:02:42.5]} 9... fxe5
{[%clk 0:02:45.5]} 10. Nxe5 {[%clk 0:02:39.4]} 10... Nxe5 {[%clk 0:02:45.8]} 11.
Qxe5 {[%clk 0:02:39.2]} 11... O-O {[%clk 0:02:46.1]} 12. Be3 {[%clk 0:02:24.5]}
12... d6 {[%clk 0:02:45.9]} 13. Qg3 {[%clk 0:02:24.7]} 13... Bh4 {[%clk
0:02:35.9]} 14. Qg4 {[%clk 0:02:18.7]} 14... e5 {[%clk 0:02:35.2]} 15. Qa4
{[%clk 0:02:14.6]} 15... Bd7 {[%clk 0:02:32]} 16. Nc4 {[%clk 0:02:13.7]} 16...
Qe7 {[%clk 0:02:28]} 17. Rae1 {[%clk 0:01:45.3]} 17... Kh8 {[%clk 0:01:55.6]}
18. Re2 {[%clk 0:01:28.4]} 18... Bf6 {[%clk 0:01:09.5]} 19. Rfe1 {[%clk
0:01:19]} 19... d5 {[%clk 0:01:04.8]} 20. Na5 {[%clk 0:01:17]} 20... Qd6 {[%clk
0:01:03.8]} 21. Nb7 {[%clk 0:01:15.5]} 21... Qc7 {[%clk 0:01:04]} 22. Nxc5
{[%clk 0:01:15.4]} 22... Bf5 {[%clk 0:01:03.4]} 23. Bd2 {[%clk 0:01:08.9]} 23...
a5 {[%clk 0:00:56.2]} 24. Nb3 {[%clk 0:01:07.4]} 24... e4 {[%clk 0:00:50.2]} 25.
d4 {[%clk 0:01:05]} 25... Bg4 {[%clk 0:00:48.2]} 26. Re3 {[%clk 0:00:59]} 26...
Bh4 {[%clk 0:00:45.4]} 27. Rf1 {[%clk 0:00:38.1]} 27... Rf6 {[%clk 0:00:45.1]}
28. Bxa5 {[%clk 0:00:29.7]} 28... Qa7 {[%clk 0:00:31.6]} 29. Qb4 {[%clk
0:00:22.9]} 29... Raf8 {[%clk 0:00:29.6]} 30. g3 {[%clk 0:00:23.1]} 30... Bg5
{[%clk 0:00:29]} 31. Qb6 {[%clk 0:00:23.5]} 31... Qxb6 {[%clk 0:00:25.4]} 32.
Bxb6 {[%clk 0:00:23.7]} 32... Bxe3 {[%clk 0:00:25.8]} 0-1

[Event "Early-Titled-Tuesday-Blitz-February-13-2024"]
[Site "Chess.com"]
[Date "2024.02.13"]
[Round "4"]
[White "Rozhkov_V"]
[Black "GameOverBro"]
[Result "0-1"]
[WhiteElo "2375"]
[BlackElo "2545"]
[TimeControl "180+1"]
[EndTime "8:42:10 PST"]
[Termination "GameOverBro won by resignation"]

1. e4 {[%clk 0:03:00.2]} 1... c5 {[%clk 0:02:59.2]} 2. Nf3 {[%clk 0:03:00.2]}
2... Nc6 {[%clk 0:02:59.6]} 3. d4 {[%clk 0:03:00.5]} 3... cxd4 {[%clk
0:03:00.5]} 4. Nxd4 {[%clk 0:03:01.4]} 4... e5 {[%clk 0:03:00.8]} 5. Nb5 {[%clk
0:03:01.3]} 5... d6 {[%clk 0:03:01]} 6. N1c3 {[%clk 0:02:59.2]} 6... a6 {[%clk
0:03:01.5]} 7. Na3 {[%clk 0:02:57.6]} 7... b5 {[%clk 0:03:01.7]} 8. Nd5 {[%clk
0:02:50.6]} 8... Nge7 {[%clk 0:03:01.5]} 9. c4 {[%clk 0:02:39]} 9... Nxd5 {[%clk
0:03:00.6]} 10. exd5 {[%clk 0:02:26.5]} 10... Nd4 {[%clk 0:03:00.3]} 11. cxb5
{[%clk 0:02:22]} 11... Be7 {[%clk 0:02:54.9]} 12. Be2 {[%clk 0:02:11.3]} 12...
O-O {[%clk 0:02:49.9]} 13. O-O {[%clk 0:02:11.2]} 13... Bb7 {[%clk 0:02:46.7]}
14. bxa6 {[%clk 0:02:06.3]} 14... Bxd5 {[%clk 0:02:46.8]} 15. Be3 {[%clk
0:02:05.9]} 15... Nxe2+ {[%clk 0:02:38.1]} 16. Qxe2 {[%clk 0:02:06.8]} 16... Qa5
{[%clk 0:02:38.4]} 17. Rfd1 {[%clk 0:02:02.3]} 17... Be6 {[%clk 0:02:34.4]} 18.
Qb5 {[%clk 0:01:22.4]} 18... Qxa6 {[%clk 0:02:31.4]} 19. h3 {[%clk 0:01:11.3]}
19... d5 {[%clk 0:02:30.4]} 20. Rac1 {[%clk 0:01:02.3]} 20... d4 {[%clk
0:02:29.9]} 21. Bd2 {[%clk 0:00:57.8]} 21... Bxa3 {[%clk 0:02:27.4]} 22. Qxa6
{[%clk 0:00:51.5]} 22... Rxa6 {[%clk 0:02:28.3]} 23. bxa3 {[%clk 0:00:51.6]}
23... Bxa2 {[%clk 0:02:26]} 24. Bb4 {[%clk 0:00:51.4]} 24... Re8 {[%clk
0:02:23.7]} 25. Rc5 {[%clk 0:00:45.9]} 25... f6 {[%clk 0:02:21.2]} 26. Rc7
{[%clk 0:00:44.6]} 26... Be6 {[%clk 0:02:05.4]} 27. Rdc1 {[%clk 0:00:40.7]}
27... h5 {[%clk 0:01:56.2]} 28. Rb7 {[%clk 0:00:37.6]} 28... Kh7 {[%clk
0:01:56.1]} 29. Rcc7 {[%clk 0:00:37]} 29... Rg8 {[%clk 0:01:55.8]} 30. Be7
{[%clk 0:00:25.3]} 30... Kg6 {[%clk 0:01:54.1]} 31. Kh2 {[%clk 0:00:21]} 31...
h4 {[%clk 0:01:53.8]} 32. g4 {[%clk 0:00:20.6]} 32... hxg3+ {[%clk 0:01:53.5]}
33. Kxg3 {[%clk 0:00:20.8]} 33... Kf5 {[%clk 0:01:50.6]} 34. Bb4 {[%clk
0:00:19.6]} 34... g5 {[%clk 0:01:47.9]} 35. Re7 {[%clk 0:00:15.4]} 35... Rh8
{[%clk 0:01:47]} 36. f3 {[%clk 0:00:13.9]} 36... d3 {[%clk 0:01:32.5]} 37. Rb5
{[%clk 0:00:11.4]} 37... Kg6 {[%clk 0:01:29.3]} 38. h4 {[%clk 0:00:08.7]} 38...
gxh4+ {[%clk 0:01:23.8]} 39. Kh2 {[%clk 0:00:08.9]} 39... Rc8 {[%clk 0:01:24.3]}
40. Rbb7 {[%clk 0:00:08.7]} 40... Rc2+ {[%clk 0:01:24.4]} 41. Kg1 {[%clk
0:00:08.6]} 41... d2 {[%clk 0:01:20.9]} 42. Rg7+ {[%clk 0:00:07.4]} 42... Kf5
{[%clk 0:01:21.5]} 43. Bxd2 {[%clk 0:00:05.5]} 43... Rxd2 {[%clk 0:01:22.4]} 44.
Rb4 {[%clk 0:00:04.7]} 44... Rxa3 {[%clk 0:01:21.6]} 45. Rb1 {[%clk 0:00:03.8]}
45... h3 {[%clk 0:01:18.5]} 0-1

[Event "Early-Titled-Tuesday-Blitz-February-13-2024"]
[Site "Chess.com"]
[Date "2024.02.13"]
[Round "4"]
[White "bubeliang"]
[Black "PabloZarnicki"]
[Result "1-0"]
[WhiteElo "2849"]
[BlackElo "2630"]
[TimeControl "180+1"]
[EndTime "8:42:13 PST"]
[Termination "bubeliang won on time"]

1. e4 {[%clk 0:03:00.9]} 1... e5 {[%clk 0:02:58.7]} 2. Nc3 {[%clk 0:03:00.3]}
2... Nf6 {[%clk 0:02:57.8]} 3. Bc4 {[%clk 0:02:59.3]} 3... Nxe4 {[%clk
0:02:57.1]} 4. Qh5 {[%clk 0:02:58.4]} 4... Nd6 {[%clk 0:02:53]} 5. Bb3 {[%clk
0:02:56.5]} 5... Be7 {[%clk 0:02:47.6]} 6. Qxe5 {[%clk 0:02:54.8]} 6... O-O
{[%clk 0:02:47.7]} 7. d4 {[%clk 0:02:53.2]} 7... Bf6 {[%clk 0:02:46.6]} 8. Qf4
{[%clk 0:02:51.9]} 8... Nc6 {[%clk 0:02:45.3]} 9. Nge2 {[%clk 0:02:46.4]} 9...
a6 {[%clk 0:02:17.7]} 10. Be3 {[%clk 0:02:44.4]} 10... Nb5 {[%clk 0:02:17.1]}
11. Nd5 {[%clk 0:02:41.4]} 11... Be7 {[%clk 0:02:04.2]} 12. c4 {[%clk
0:02:30.2]} 12... Nb4 {[%clk 0:01:54.2]} 13. Nxe7+ {[%clk 0:02:14.4]} 13... Qxe7
{[%clk 0:01:52.7]} 14. O-O {[%clk 0:02:15.3]} 14... Nd6 {[%clk 0:01:37.9]} 15.
Ng3 {[%clk 0:02:02.5]} 15... Ne8 {[%clk 0:01:17]} 16. d5 {[%clk 0:01:50]} 16...
d6 {[%clk 0:01:13.1]} 17. Bd2 {[%clk 0:01:32.5]} 17... Nd3 {[%clk 0:01:08.7]}
18. Qd4 {[%clk 0:01:26.9]} 18... Nc5 {[%clk 0:01:08.9]} 19. Bc2 {[%clk
0:01:25.2]} 19... Qf6 {[%clk 0:01:04.5]} 20. Bc3 {[%clk 0:01:24.1]} 20... Qxd4
{[%clk 0:01:03.7]} 21. Bxd4 {[%clk 0:01:25]} 21... a5 {[%clk 0:00:59.6]} 22.
Rfe1 {[%clk 0:01:23.9]} 22... g6 {[%clk 0:00:51.1]} 23. Re7 {[%clk 0:01:19.3]}
23... Na6 {[%clk 0:00:51]} 24. Rae1 {[%clk 0:01:15.9]} 24... Ng7 {[%clk
0:00:50.9]} 25. Ne4 {[%clk 0:01:11.8]} 25... Nh5 {[%clk 0:00:41.6]} 26. Nf6+
{[%clk 0:00:57.1]} 26... Nxf6 {[%clk 0:00:41.2]} 27. Bxf6 {[%clk 0:00:58]} 27...
c6 {[%clk 0:00:27]} 28. dxc6 {[%clk 0:00:47.5]} 28... bxc6 {[%clk 0:00:26.4]}
29. Ba4 {[%clk 0:00:48.1]} 29... Be6 {[%clk 0:00:16.4]} 30. Bxc6 {[%clk
0:00:44.1]} 30... Rac8 {[%clk 0:00:15.8]} 31. Bb7 {[%clk 0:00:42.7]} 1-0

[Event "Early-Titled-Tuesday-Blitz-February-13-2024"]
[Site "Chess.com"]
[Date "2024.02.13"]
[Round "4"]
[White "Kostya0705"]
[Black "artin10862"]
[Result "1-0"]
[WhiteElo "2620"]
[BlackElo "2876"]
[TimeControl "180+1"]
[EndTime "8:42:14 PST"]
[Termination "Kostya0705 won by resignation"]

1. e4 {[%clk 0:03:00.9]} 1... e5 {[%clk 0:02:59.3]} 2. Nf3 {[%clk 0:03:00.3]}
2... Nc6 {[%clk 0:02:59.6]} 3. Bc4 {[%clk 0:03:00.7]} 3... Bc5 {[%clk
0:02:56.7]} 4. c3 {[%clk 0:03:00.8]} 4... Nf6 {[%clk 0:02:54.6]} 5. d4 {[%clk
0:03:01]} 5... exd4 {[%clk 0:02:54.3]} 6. b4 {[%clk 0:03:01.6]} 6... Bb6 {[%clk
0:02:45.2]} 7. e5 {[%clk 0:03:01.5]} 7... d5 {[%clk 0:02:45.2]} 8. exf6 {[%clk
0:03:01.3]} 8... dxc4 {[%clk 0:02:44.9]} 9. Qe2+ {[%clk 0:03:02]} 9... Be6
{[%clk 0:02:29.4]} 10. b5 {[%clk 0:03:00.8]} 10... d3 {[%clk 0:02:07.1]} 11. Qe4
{[%clk 0:02:58.7]} 11... Na5 {[%clk 0:01:57.7]} 12. fxg7 {[%clk 0:02:56.2]}
12... Rg8 {[%clk 0:01:53.9]} 13. Bg5 {[%clk 0:02:56.6]} 13... Qd5 {[%clk
0:01:47.7]} 14. Qxh7 {[%clk 0:02:56.4]} 14... Kd7 {[%clk 0:01:42.5]} 15. O-O
{[%clk 0:02:56.3]} 15... Rae8 {[%clk 0:01:40]} 16. Nbd2 {[%clk 0:02:50.4]} 16...
Bf5 {[%clk 0:01:37.9]} 17. Qh6 {[%clk 0:02:50]} 17... Re6 {[%clk 0:01:35.7]} 18.
Bf6 {[%clk 0:02:35.8]} 18... Qd6 {[%clk 0:01:32.5]} 19. Rae1 {[%clk 0:02:27.6]}
19... Rxf6 {[%clk 0:00:59.7]} 20. Qh8 {[%clk 0:02:27]} 20... Rxh8 {[%clk
0:00:58.6]} 21. gxh8=Q {[%clk 0:02:26.5]} 21... Re6 {[%clk 0:00:45.7]} 22. Ne5+
{[%clk 0:02:19.3]} 22... Ke7 {[%clk 0:00:43.7]} 23. Nexc4 {[%clk 0:01:59.4]}
23... Nxc4 {[%clk 0:00:31.7]} 24. Nxc4 {[%clk 0:02:00.3]} 24... Qf4 {[%clk
0:00:19.1]} 25. Nxb6 {[%clk 0:01:53.5]} 25... axb6 {[%clk 0:00:20]} 26. Rxe6+
{[%clk 0:01:49.1]} 26... Bxe6 {[%clk 0:00:19.8]} 27. Qd4 {[%clk 0:01:47.9]}
27... Qxd4 {[%clk 0:00:19.7]} 28. cxd4 {[%clk 0:01:48.8]} 28... Bxa2 {[%clk
0:00:19]} 29. Rd1 {[%clk 0:01:34.8]} 29... Bc4 {[%clk 0:00:18.9]} 30. f4 {[%clk
0:01:33.7]} 30... Bxb5 {[%clk 0:00:18.2]} 31. Kf2 {[%clk 0:01:33.2]} 31... Bc4
{[%clk 0:00:15]} 32. Ke3 {[%clk 0:01:33]} 32... b5 {[%clk 0:00:15.4]} 33. Rb1
{[%clk 0:01:25.7]} 33... f5 {[%clk 0:00:11.8]} 34. h3 {[%clk 0:01:25]} 34... b6
{[%clk 0:00:12]} 35. g4 {[%clk 0:01:25]} 35... c5 {[%clk 0:00:12.2]} 36. g5
{[%clk 0:01:22]} 36... b4 {[%clk 0:00:12.4]} 37. h4 {[%clk 0:01:20.4]} 37... Ba2
{[%clk 0:00:09.3]} 38. Rb2 {[%clk 0:01:19.2]} 38... b3 {[%clk 0:00:03.7]} 39.
Kxd3 {[%clk 0:01:18.8]} 39... Kd6 {[%clk 0:00:04.1]} 40. dxc5+ {[%clk
0:01:17.7]} 40... bxc5 {[%clk 0:00:03.8]} 41. h5 {[%clk 0:01:17.7]} 41... Kd5
{[%clk 0:00:02.7]} 42. h6 {[%clk 0:01:16.4]} 42... c4+ {[%clk 0:00:03.6]} 43.
Kc3 {[%clk 0:01:16.7]} 1-0

[Event "Early-Titled-Tuesday-Blitz-February-13-2024"]
[Site "Chess.com"]
[Date "2024.02.13"]
[Round "4"]
[White "krasavetc"]
[Black "KhazhatulyAlikhan"]
[Result "1-0"]
[WhiteElo "2620"]
[BlackElo "2418"]
[TimeControl "180+1"]
[EndTime "8:42:14 PST"]
[Termination "krasavetc won on time"]

1. e4 {[%clk 0:03:00.9]} 1... c5 {[%clk 0:02:55.5]} 2. Nf3 {[%clk 0:03:00.6]}
2... e6 {[%clk 0:02:55.7]} 3. c3 {[%clk 0:02:58.5]} 3... Nf6 {[%clk 0:02:54.9]}
4. Bd3 {[%clk 0:02:56.9]} 4... Nc6 {[%clk 0:02:47.1]} 5. Bc2 {[%clk 0:02:56.1]}
5... d5 {[%clk 0:02:16.3]} 6. e5 {[%clk 0:02:45.4]} 6... Nd7 {[%clk 0:02:16.3]}
7. d4 {[%clk 0:02:45.6]} 7... cxd4 {[%clk 0:02:17.2]} 8. cxd4 {[%clk 0:02:46]}
8... Be7 {[%clk 0:02:17.4]} 9. h4 {[%clk 0:02:40.9]} 9... b6 {[%clk 0:02:15.8]}
10. Bg5 {[%clk 0:01:56.1]} 10... Nb4 {[%clk 0:02:06.2]} 11. Nc3 {[%clk
0:01:45.9]} 11... Ba6 {[%clk 0:01:51.1]} 12. Bb1 {[%clk 0:01:40.7]} 12... h6
{[%clk 0:01:39.7]} 13. Bxe7 {[%clk 0:01:24.7]} 13... Qxe7 {[%clk 0:01:40.6]} 14.
a3 {[%clk 0:01:24.8]} 14... Nc6 {[%clk 0:01:28.7]} 15. b4 {[%clk 0:01:24.9]}
15... Bc4 {[%clk 0:01:17.3]} 16. Nd2 {[%clk 0:01:24.4]} 16... b5 {[%clk
0:01:03.7]} 17. Qg4 {[%clk 0:01:09.2]} 17... O-O {[%clk 0:00:10.7]} 18. Rh3
{[%clk 0:00:56.2]} 18... f5 {[%clk 0:00:10.7]} 19. Qf4 {[%clk 0:00:56.3]} 19...
a5 {[%clk 0:00:09.5]} 20. Nxc4 {[%clk 0:00:55.4]} 20... axb4 {[%clk 0:00:04.3]}
21. Nxd5 {[%clk 0:00:46.3]} 21... exd5 {[%clk 0:00:05.2]} 22. Ne3 {[%clk
0:00:46.9]} 22... Rxa3 {[%clk 0:00:02.2]} 23. Ra2 {[%clk 0:00:29.2]} 23... Rxa2
{[%clk 0:00:02.1]} 24. Bxa2 {[%clk 0:00:30.1]} 24... Kh8 {[%clk 0:00:01.4]} 25.
Bxd5 {[%clk 0:00:29]} 1-0

[Event "Early-Titled-Tuesday-Blitz-February-13-2024"]
[Site "Chess.com"]
[Date "2024.02.13"]
[Round "4"]
[White "calin_dragomirescu"]
[Black "faraone99"]
[Result "0-1"]
[WhiteElo "2330"]
[BlackElo "2536"]
[TimeControl "180+1"]
[EndTime "8:42:16 PST"]
[Termination "faraone99 won by resignation"]

1. c4 {[%clk 0:02:58.4]} 1... e6 {[%clk 0:02:59.7]} 2. Nf3 {[%clk 0:02:58.4]}
2... d5 {[%clk 0:02:59.6]} 3. g3 {[%clk 0:02:58.9]} 3... Nf6 {[%clk 0:02:59.6]}
4. Bg2 {[%clk 0:02:59.4]} 4... d4 {[%clk 0:02:58.6]} 5. e3 {[%clk 0:02:58.9]}
5... c5 {[%clk 0:02:55.5]} 6. exd4 {[%clk 0:02:59.2]} 6... cxd4 {[%clk
0:02:56.4]} 7. d3 {[%clk 0:02:59.3]} 7... Nc6 {[%clk 0:02:56.7]} 8. O-O {[%clk
0:02:59.8]} 8... Be7 {[%clk 0:02:55.3]} 9. Re1 {[%clk 0:02:57.6]} 9... O-O
{[%clk 0:02:55.1]} 10. a3 {[%clk 0:02:58.2]} 10... a5 {[%clk 0:02:54.9]} 11. Bg5
{[%clk 0:02:58.2]} 11... Nd7 {[%clk 0:02:51.5]} 12. Bxe7 {[%clk 0:02:57.7]}
12... Qxe7 {[%clk 0:02:52.4]} 13. Nbd2 {[%clk 0:02:56.2]} 13... Nc5 {[%clk
0:02:47.6]} 14. Nb3 {[%clk 0:02:47]} 14... Rd8 {[%clk 0:02:45.8]} 15. Nxc5
{[%clk 0:02:46.6]} 15... Qxc5 {[%clk 0:02:46.7]} 16. Rb1 {[%clk 0:02:42.4]}
16... a4 {[%clk 0:02:41.8]} 17. Nd2 {[%clk 0:02:34.7]} 17... h6 {[%clk
0:02:37.1]} 18. Ne4 {[%clk 0:02:32.8]} 18... Qe7 {[%clk 0:02:36.6]} 19. h4
{[%clk 0:02:31.1]} 19... f5 {[%clk 0:02:28.5]} 20. Nd2 {[%clk 0:02:28.6]} 20...
e5 {[%clk 0:02:19.9]} 21. Qc2 {[%clk 0:02:17.8]} 21... Qf6 {[%clk 0:02:11.8]}
22. c5 {[%clk 0:02:11.2]} 22... Be6 {[%clk 0:02:11.6]} 23. Nc4 {[%clk 0:02:08]}
23... Bf7 {[%clk 0:02:03.7]} 24. Bxc6 {[%clk 0:02:04.9]} 24... bxc6 {[%clk
0:02:03.4]} 25. Nxe5 {[%clk 0:02:03.9]} 25... f4 {[%clk 0:02:02.4]} 26. Nxf7
{[%clk 0:02:02.2]} 26... Qxf7 {[%clk 0:01:58.7]} 27. Qc4 {[%clk 0:01:57]} 27...
Qxc4 {[%clk 0:01:57.8]} 28. dxc4 {[%clk 0:01:57.2]} 28... fxg3 {[%clk
0:01:57.9]} 29. fxg3 {[%clk 0:01:57.7]} 29... d3 {[%clk 0:01:54.2]} 30. Rbd1
{[%clk 0:01:56.4]} 30... Rd4 {[%clk 0:01:47.7]} 31. Re6 {[%clk 0:01:50]} 31...
Rb8 {[%clk 0:01:42.4]} 32. Rd6 {[%clk 0:01:47.2]} 32... Rxc4 {[%clk 0:01:41]}
33. R1xd3 {[%clk 0:01:44.9]} 33... Rxb2 {[%clk 0:01:38.1]} 34. R6d4 {[%clk
0:01:24.4]} 34... Rc1+ {[%clk 0:01:17.5]} 35. Rd1 {[%clk 0:01:23.5]} 35... Rxc5
{[%clk 0:01:18.4]} 36. R1d2 {[%clk 0:01:19.8]} 36... Rb1+ {[%clk 0:01:13.4]} 37.
Kg2 {[%clk 0:01:19.5]} 37... Rc3 {[%clk 0:01:12.7]} 38. R4d3 {[%clk 0:01:13.3]}
38... Rxd3 {[%clk 0:01:11.5]} 39. Rxd3 {[%clk 0:01:13.5]} 39... Rb3 {[%clk
0:01:02]} 40. Rd6 {[%clk 0:01:11.5]} 40... Rxa3 {[%clk 0:00:58.6]} 41. Rxc6
{[%clk 0:01:11.8]} 41... Rb3 {[%clk 0:00:59.2]} 42. Ra6 {[%clk 0:01:11.7]} 42...
a3 {[%clk 0:00:59.1]} 43. h5 {[%clk 0:01:11.9]} 43... Kf7 {[%clk 0:00:56.4]} 44.
g4 {[%clk 0:01:12.4]} 44... Rb2+ {[%clk 0:00:54.2]} 45. Kg3 {[%clk 0:01:12.2]}
45... a2 {[%clk 0:00:55.1]} 46. Kh3 {[%clk 0:01:10.2]} 46... Ke7 {[%clk
0:00:54.5]} 47. Kg3 {[%clk 0:01:08.3]} 47... Kd7 {[%clk 0:00:54.8]} 48. Kh3
{[%clk 0:01:08.7]} 48... Kc7 {[%clk 0:00:55.1]} 49. Kg3 {[%clk 0:01:09.4]} 49...
Kb7 {[%clk 0:00:55.5]} 50. Ra3 {[%clk 0:01:09.5]} 50... Kc6 {[%clk 0:00:54.4]}
51. Ra8 {[%clk 0:01:10.1]} 51... Kc5 {[%clk 0:00:53.9]} 52. g5 {[%clk
0:01:03.2]} 52... Kb4 {[%clk 0:00:53.9]} 53. g6 {[%clk 0:00:59]} 53... Rb3+
{[%clk 0:00:51.9]} 54. Kf4 {[%clk 0:00:57.7]} 54... Ra3 {[%clk 0:00:52.8]} 55.
Rb8+ {[%clk 0:00:57.3]} 55... Kc3 {[%clk 0:00:51.3]} 56. Rc8+ {[%clk 0:00:56.2]}
56... Kd2 {[%clk 0:00:50.2]} 57. Rd8+ {[%clk 0:00:54.4]} 57... Ke2 {[%clk
0:00:50.4]} 0-1